fUSD/lending_fUSD_20260610
["ID","MTS","AMOUNT","RATE_DAILY","PERIOD"]
[424732687,1781095843000,-204.73768003,0.00027397,10]
[424732683,1781095843000,-500.0,0.00027397,7]
[424732680,1781095843000,-500.0,0.00027397,7]
[424732685,1781095843000,-153.80113636,0.00027397,2]
[424732681,1781095843000,-500.0,0.00027397,7]
[424732678,1781095843000,-500.0,0.00027397,7]
[424732689,1781095843000,-11987.08,0.00027397,10]
[424732682,1781095843000,-500.0,0.00027397,7]
[424732698,1781095843000,-157.99286012,0.00027459,2]
[424732691,1781095843000,-284.95203121,0.000274,10]
[424732699,1781095843000,-194.34348694,0.00027459,2]
[424732694,1781095843000,-157.50499742,0.00027459,2]
[424732701,1781095843000,-173.4977776,0.00027485,2]
[424732697,1781095843000,-157.79430071,0.00027459,2]
[424732695,1781095843000,-250.97687798,0.00027459,2]
[424732693,1781095843000,-153.8555235,0.00027459,2]
[424732692,1781095843000,-222.93630116,0.00027459,2]
[424732690,1781095843000,-164.08,0.000274,7]
[424732688,1781095843000,-300.0,0.00027397,2]
[424732696,1781095843000,-178.04385756,0.00027459,2]
[424732747,1781095844000,-385.55,0.00028004,2]
[424732753,1781095844000,-385.55,0.00028022,7]
[424732749,1781095844000,-1099.62,0.00028017,2]
[424732748,1781095844000,-385.15,0.00028016,7]
[424732751,1781095844000,-517.0,0.0002802,11]
[424732759,1781095844000,-385.15,0.00028054,2]
[424732767,1781095844000,-385.15,0.00028092,30]
[424732765,1781095844000,-385.55,0.00028076,7]
[424732770,1781095844000,-385.55,0.00028094,30]
[424732761,1781095844000,-385.55,0.00028058,2]
[424732772,1781095844000,-385.15,0.00028111,2]
[424732774,1781095844000,-385.55,0.00028112,2]
[424732778,1781095844000,-385.27,0.0002813,7]
[424732780,1781095844000,-1099.62,0.00028158,30]
[424732746,1781095844000,-600.0,0.00028,2]
[424732776,1781095844000,-385.64,0.0002813,7]
[424732763,1781095844000,-385.15,0.00028073,7]
[424732755,1781095844000,-385.15,0.00028035,30]
[424732733,1781095844000,-385.15,0.00027922,30]
[424732745,1781095844000,-385.15,0.00027997,2]
[424732782,1781095844000,-1059.0,0.00028169,30]
[424732731,1781095844000,-385.15,0.00027903,7]
[424732729,1781095844000,-385.15,0.00027884,2]
[424732732,1781095844000,-385.55,0.00027915,7]
[424732728,1781095844000,-385.55,0.00027879,30]
[424732730,1781095844000,-385.55,0.00027897,2]
[424732734,1781095844000,-385.55,0.00027933,30]
[424732741,1781095844000,-250.0,0.00027974,7]
[424732737,1781095844000,-385.55,0.00027951,2]
[424732735,1781095844000,-200.0,0.00027937,2]
[424732736,1781095844000,-385.15,0.00027941,2]
[424732738,1781095844000,-385.15,0.00027959,7]
[424732739,1781095844000,-385.55,0.00027968,7]
[424732740,1781095844000,-150.0,0.00027973,2]
[424732742,1781095844000,-385.15,0.00027978,30]
[424732744,1781095844000,-385.55,0.00027986,30]
[424732743,1781095844000,-438.80061462,0.00027981,2]
[424732757,1781095844000,-385.55,0.0002804,30]
[424732784,1781095844000,-151.0,0.00028267,2]
[424732786,1781095844000,-1099.62,0.00028298,7]
[424732797,1781095844000,-685.07,0.00028457,7]
[424732817,1781095844000,-187.30593683,0.00028755,2]
[424732811,1781095844000,-307.71104701,0.00028755,2]
[424732818,1781095844000,-315.98572024,0.00028755,2]
[424732819,1781095844000,-169.47660971,0.00028755,2]
[424732813,1781095844000,-501.95375595,0.00028755,2]
[424732816,1781095844000,-315.58860142,0.00028755,2]
[424732820,1781095844000,-388.68697387,0.00028755,2]
[424732822,1781095844000,-331.02295284,0.00028783,2]
[424732826,1781095844000,-175.89049021,0.00028783,2]
[424732828,1781095844000,-335.80799001,0.00028783,2]
[424732825,1781095844000,-464.63984305,0.00028783,2]
[424732823,1781095844000,-346.99555521,0.00028783,2]
[424732821,1781095844000,-153.80113636,0.00028766,2]
[424732824,1781095844000,-236.1920164,0.00028783,2]
[424732830,1781095844000,-339.86105674,0.00028783,2]
[424732827,1781095844000,-176.73237925,0.00028783,2]
[424732831,1781095844000,-320.76789097,0.00028783,2]
[424732814,1781095844000,-356.08771512,0.00028755,2]
[424732815,1781095844000,-156.71228337,0.00028755,2]
[424732829,1781095844000,-176.4548988,0.00028783,2]
[424732810,1781095844000,-445.87260232,0.00028755,2]
[424732788,1781095844000,-1059.0,0.00028307,7]
[424732812,1781095844000,-315.00999483,0.00028755,2]
[424732798,1781095844000,-1023.35,0.00028457,7]
[424732790,1781095844000,-1958.0,0.00028366,5]
[424732796,1781095844000,-204.73768003,0.0002839,30]
[424732799,1781095844000,-685.07,0.00028525,2]
[424732792,1781095844000,-685.07,0.0002839,30]
[424732800,1781095844000,-1023.35,0.00028525,2]
[424732794,1781095844000,-1023.35,0.0002839,30]
[424732802,1781095844000,-1023.35,0.00028593,30]
[424732803,1781095844000,-164.08,0.000286,7]
[424732805,1781095844000,-685.07,0.00028661,7]
[424732807,1781095844000,-200.0,0.00028705,2]
[424732806,1781095844000,-1023.35,0.00028661,7]
[424732801,1781095844000,-685.07,0.00028593,30]
[424732808,1781095844000,-685.07,0.00028728,2]
[424732804,1781095844000,-517.0,0.00028646,11]
[424732809,1781095844000,-1023.35,0.00028728,2]
[424732869,1781095845000,-2714.27288206,0.000295,5]
[424732870,1781095845000,-2974.70116358,0.000295,5]
[424732871,1781095845000,-2746.21645531,0.000295,5]
[424732866,1781095845000,-200.0,0.00029473,2]
[424732860,1781095845000,-175.0,0.00029222,30]
[424732864,1781095845000,-150.0,0.00029372,2]
[424732868,1781095845000,-1104.90980305,0.000295,5]
[424732859,1781095845000,-534.0,0.00029222,30]
[424732861,1781095845000,-309.0,0.00029222,30]
[424732862,1781095845000,-153.0,0.00029222,30]
[424732876,1781095845000,-1303.99131385,0.000295,5]
[424732863,1781095845000,-517.0,0.00029273,12]
[424732865,1781095845000,-228.0,0.00029387,2]
[424732873,1781095845000,-3239.95851134,0.000295,5]
[424732882,1781095845000,-472.51499225,0.00029619,2]
[424732877,1781095845000,-1303.99131385,0.000295,5]
[424732875,1781095845000,-608.90435781,0.000295,5]
[424732880,1781095845000,-668.80890349,0.00029619,2]
[424732879,1781095845000,-237.87394358,0.00029619,2]
[424732881,1781095845000,-461.56657051,0.00029619,2]
[424732883,1781095845000,-752.93063393,0.00029619,2]
[424732855,1781095845000,-153.0,0.00029222,30]
[424732867,1781095845000,-1104.90980305,0.000295,5]
[424732854,1781095845000,-153.0,0.00029222,30]
[424732838,1781095845000,-341.0,0.000289,2]
[424732850,1781095845000,-159.0,0.00029222,30]
[424732832,1781095845000,-685.07,0.00028796,30]
[424732834,1781095845000,-3763.00342347,0.00028816,2]
[424732835,1781095845000,-685.07,0.00028864,7]
[424732836,1781095845000,-1023.35,0.00028864,7]
[424732833,1781095845000,-1023.35,0.00028796,30]
[424732837,1781095845000,-344.0,0.000289,2]
[424732874,1781095845000,-2453.84460062,0.000295,5]
[424732840,1781095845000,-685.07,0.00028932,2]
[424732843,1781095845000,-685.07,0.00029,30]
[424732841,1781095845000,-1023.35,0.00028932,2]
[424732844,1781095845000,-1023.42,0.00029,30]
[424732842,1781095845000,-186.24909246,0.00028971,2]
[424732846,1781095845000,-190.0,0.00029,2]
[424732839,1781095845000,-155.35,0.00028929,2]
[424732845,1781095845000,-190.0,0.00029,2]
[424732847,1781095845000,-284.95203121,0.00029,30]
[424732849,1781095845000,-156.0,0.00029222,30]
[424732848,1781095845000,-492.0,0.00029,2]
[424732851,1781095845000,-158.0,0.00029222,30]
[424732856,1781095845000,-489.0,0.00029222,30]
[424732857,1781095845000,-173.0,0.00029222,30]
[424732858,1781095845000,-157.0,0.00029222,30]
[424732853,1781095845000,-486.0,0.00029222,30]
[424732852,1781095845000,-441.0,0.00029222,30]
[424732872,1781095845000,-4387.52310756,0.000295,5]
[424732923,1781095845000,-260.86546359,0.000299,2]
[424732884,1781095845000,-231.96239747,0.00029619,2]
[424732911,1781095845000,-199.77303664,0.00029648,2]
[424732912,1781095845000,-481.15183645,0.00029648,2]
[424732914,1781095845000,-164.08,0.000297,7]
[424732913,1781095845000,-214.4770715,0.00029648,2]
[424732917,1781095845000,-1000.0,0.000299,2]
[424732916,1781095845000,-260.86546359,0.000299,2]
[424732915,1781095845000,-517.0,0.00029899,13]
[424732919,1781095845000,-260.86546359,0.000299,2]
[424732921,1781095845000,-260.86546359,0.000299,2]
[424732925,1781095845000,-260.86546359,0.000299,2]
[424732922,1781095845000,-260.86546359,0.000299,2]
[424732926,1781095845000,-260.86546359,0.000299,2]
[424732920,1781095845000,-260.86546359,0.000299,2]
[424732924,1781095845000,-260.86546359,0.000299,2]
[424732928,1781095845000,-260.86546359,0.000299,2]
[424732929,1781095845000,-316.0,0.000299,2]
[424732930,1781095845000,-260.86546359,0.000299,2]
[424732931,1781095845000,-260.86546359,0.000299,2]
[424732932,1781095845000,-260.86546359,0.000299,2]
[424732934,1781095845000,-260.86546359,0.000299,2]
[424732937,1781095845000,-260.86546359,0.000299,2]
[424732936,1781095845000,-260.86546359,0.000299,2]
[424732878,1781095845000,-218.20932854,0.00029619,2]
[424732907,1781095845000,-352.90979761,0.00029648,2]
[424732910,1781095845000,-215.10220671,0.00029648,2]
[424732927,1781095845000,-260.86546359,0.000299,2]
[424732908,1781095845000,-150.1419833,0.00029648,2]
[424732888,1781095845000,-473.38290212,0.0002962,2]
[424732909,1781095845000,-509.79158511,0.00029648,2]
[424732890,1781095845000,-473.97858036,0.0002962,2]
[424732886,1781095845000,-313.42456673,0.0002962,2]
[424732885,1781095845000,-534.13157267,0.00029619,2]
[424732889,1781095845000,-374.61187365,0.0002962,2]
[424732887,1781095845000,-238.28335866,0.0002962,2]
[424732894,1781095845000,-211.52589401,0.0002962,2]
[424732892,1781095845000,-160.52833394,0.0002962,2]
[424732893,1781095845000,-196.88151501,0.0002962,2]
[424732895,1781095845000,-583.03046081,0.0002962,2]
[424732897,1781095845000,-221.31728835,0.0002962,2]
[424732891,1781095845000,-338.95321943,0.0002962,2]
[424732901,1781095845000,-472.3840328,0.00029648,2]
[424732918,1781095845000,-260.86546359,0.000299,2]
[424732899,1781095845000,-520.49333281,0.00029648,2]
[424732903,1781095845000,-351.78098042,0.00029648,2]
[424732902,1781095845000,-696.95976458,0.00029648,2]
[424732896,1781095845000,-188.43621114,0.0002962,2]
[424732904,1781095845000,-353.4647585,0.00029648,2]
[424732898,1781095845000,-496.53442926,0.00029648,2]
[424732900,1781095845000,-167.3226081,0.00029648,2]
[424732905,1781095845000,-503.71198501,0.00029648,2]
[424732906,1781095845000,-150.33840557,0.00029648,2]
[424732979,1781095846000,-470.1368501,0.00030196,2]
[424732970,1781095846000,-1003.90751191,0.00030196,2]
[424732971,1781095846000,-463.92479493,0.00030196,2]
[424732974,1781095846000,-200.3873064,0.00030196,2]
[424732973,1781095846000,-385.03268529,0.00030196,2]
[424732972,1781095846000,-266.31373874,0.00030196,2]
[424732976,1781095846000,-183.69698338,0.00030196,2]
[424732975,1781095846000,-424.27116041,0.00030196,2]
[424732980,1781095846000,-476.56671733,0.00030196,2]
[424732977,1781095846000,-712.17543023,0.00030196,2]
[424732978,1781095846000,-228.08904723,0.00030196,2]
[424732982,1781095846000,-158.99859323,0.00030196,2]
[424732996,1781095846000,-365.1177954,0.00030196,2]
[424732983,1781095846000,-201.92594505,0.00030196,2]
[424732986,1781095846000,-201.82217861,0.00030196,2]
[424732990,1781095846000,-508.42982914,0.00030196,2]
[424732989,1781095846000,-272.42012063,0.00030196,2]
[424732988,1781095846000,-264.60155904,0.00030196,2]
[424732985,1781095846000,-631.97144048,0.00030196,2]
[424732987,1781095846000,-325.57646544,0.00030196,2]
[424732991,1781095846000,-321.05666789,0.00030196,2]
[424732993,1781095846000,-423.05178802,0.00030196,2]
[424732997,1781095846000,-336.00003775,0.00030196,2]
[424732995,1781095846000,-308.61377285,0.00030196,2]
[424732960,1781095846000,-226.60872731,0.00030137,2]
[424732981,1781095846000,-631.17720283,0.00030196,2]
[424732969,1781095846000,-630.01998966,0.00030196,2]
[424732940,1781095846000,-260.86546359,0.000299,2]
[424732966,1781095846000,-475.74788715,0.00030196,2]
[424732999,1781095846000,-339.17733709,0.00030196,2]
[424732942,1781095846000,-260.86546359,0.000299,2]
[424732944,1781095846000,-162.46,0.0003,2]
[424732943,1781095846000,-309.0,0.000299,2]
[424732947,1781095846000,-162.46,0.0003,2]
[424732946,1781095846000,-162.46,0.0003,2]
[424732945,1781095846000,-162.46,0.0003,2]
[424732949,1781095846000,-162.46,0.0003,2]
[424732948,1781095846000,-162.46,0.0003,2]
[424732950,1781095846000,-162.46,0.0003,2]
[424732953,1781095846000,-500.0,0.00030038,120]
[424732954,1781095846000,-500.0,0.00030038,7]
[424732952,1781095846000,-650.0,0.0003,2]
[424732958,1781095846000,-186.65430662,0.00030136,2]
[424732956,1781095846000,-59097.69354689,0.00030039,7]
[424732951,1781095846000,-162.46,0.0003,2]
[424732955,1781095846000,-29548.84677345,0.00030039,7]
[424732957,1781095846000,-153.80113636,0.00030135,2]
[424732959,1781095846000,-516.02,0.00030137,5]
[424732961,1781095846000,-174.31,0.00030137,30]
[424732965,1781095846000,-432.75550045,0.00030196,2]
[424732968,1781095846000,-615.42209401,0.00030196,2]
[424732962,1781095846000,-276.9077719,0.00030196,2]
[424732964,1781095846000,-436.41865708,0.00030196,2]
[424732963,1781095846000,-389.02461309,0.00030196,2]
[424732967,1781095846000,-891.74520465,0.00030196,2]
[424733000,1781095846000,-224.46304643,0.00030196,2]
[424732984,1781095846000,-561.91781048,0.00030196,2]
[424733002,1781095846000,-382.22948702,0.00030196,2]
[424733039,1781095846000,-219.9211986,0.00030224,2]
[424733028,1781095846000,-215.06301414,0.00030224,2]
[424733030,1781095846000,-693.99111042,0.00030224,2]
[424733032,1781095846000,-362.65964588,0.00030224,2]
[424733034,1781095846000,-370.52082499,0.00030224,2]
[424733033,1781095846000,-334.64521619,0.00030224,2]
[424733031,1781095846000,-405.57802713,0.00030224,2]
[424733035,1781095846000,-206.74564506,0.00030224,2]
[424733037,1781095846000,-929.2796861,0.00030224,2]
[424733038,1781095846000,-527.67147064,0.00030224,2]
[424733036,1781095846000,-708.5760492,0.00030224,2]
[424733042,1781095846000,-173.00328549,0.00030224,2]
[424733043,1781095846000,-671.61598001,0.00030224,2]
[424733041,1781095846000,-530.19713774,0.00030224,2]
[424733044,1781095846000,-300.67681114,0.00030224,2]
[424733047,1781095846000,-180.94753192,0.00030224,2]
[424733046,1781095846000,-193.97718501,0.00030224,2]
[424733049,1781095846000,-679.72211348,0.00030224,2]
[424733045,1781095846000,-529.36469641,0.00030224,2]
[424733048,1781095846000,-300.28396659,0.00030224,2]
[424733050,1781095846000,-430.20441342,0.00030224,2]
[424733051,1781095846000,-370.80025147,0.00030224,2]
[424733052,1781095846000,-641.53578193,0.00030224,2]
[424733053,1781095846000,-151.0,0.00030239,2]
[424732992,1781095846000,-393.76303001,0.00030196,2]
[424733029,1781095846000,-428.90428709,0.00030224,2]
[424733021,1781095846000,-309.0,0.00030222,30]
[424733040,1781095846000,-154.19222129,0.00030224,2]
[424733027,1781095846000,-662.04590568,0.00030224,2]
[424733022,1781095846000,-153.0,0.00030222,30]
[424732998,1781095846000,-333.64164255,0.00030196,2]
[424733001,1781095846000,-315.98830037,0.00030196,2]
[424733014,1781095846000,-153.0,0.00030222,30]
[424733004,1781095846000,-150.55645213,0.00030196,2]
[424733003,1781095846000,-442.6345767,0.00030196,2]
[424733054,1781095846000,-200.0,0.00030242,2]
[424733005,1781095846000,-263.8276857,0.00030196,2]
[424733007,1781095846000,-376.87242228,0.00030196,2]
[424733006,1781095846000,-413.35119911,0.00030196,2]
[424733008,1781095846000,-315.39846833,0.00030196,2]
[424733011,1781095846000,-158.0,0.00030222,30]
[424733009,1781095846000,-156.0,0.00030222,30]
[424732994,1781095846000,-777.37394775,0.00030196,2]
[424733016,1781095846000,-489.0,0.00030222,30]
[424733012,1781095846000,-441.0,0.00030222,30]
[424733023,1781095846000,-798.0,0.00030222,30]
[424733026,1781095846000,-208.0,0.00030222,30]
[424733025,1781095846000,-150.0,0.00030222,30]
[424733020,1781095846000,-175.0,0.00030222,30]
[424733019,1781095846000,-534.0,0.00030222,30]
[424733017,1781095846000,-173.0,0.00030222,30]
[424733018,1781095846000,-157.0,0.00030222,30]
[424733015,1781095846000,-153.0,0.00030222,30]
[424733013,1781095846000,-486.0,0.00030222,30]
[424733010,1781095846000,-159.0,0.00030222,30]
[424733024,1781095846000,-987.0,0.00030222,30]
[424733094,1781095847000,-400.0,0.000312,7]
[424733092,1781095847000,-400.0,0.000312,7]
[424733101,1781095847000,-158.0,0.00031222,30]
[424733103,1781095847000,-486.0,0.00031222,30]
[424733102,1781095847000,-441.0,0.00031222,30]
[424733087,1781095847000,-228.0,0.00031116,3]
[424733097,1781095847000,-400.0,0.000312,7]
[424733096,1781095847000,-400.0,0.000312,7]
[424733084,1781095847000,-300.0,0.000309,7]
[424733088,1781095847000,-517.0,0.00031152,14]
[424733100,1781095847000,-159.0,0.00031222,30]
[424733099,1781095847000,-156.0,0.00031222,30]
[424733095,1781095847000,-400.0,0.000312,7]
[424733106,1781095847000,-489.0,0.00031222,30]
[424733093,1781095847000,-400.0,0.000312,7]
[424733104,1781095847000,-153.0,0.00031222,30]
[424733107,1781095847000,-173.0,0.00031222,30]
[424733105,1781095847000,-153.0,0.00031222,30]
[424733115,1781095847000,-3000.0,0.00031222,30]
[424733112,1781095847000,-153.0,0.00031222,30]
[424733108,1781095847000,-157.0,0.00031222,30]
[424733113,1781095847000,-3000.0,0.00031222,30]
[424733110,1781095847000,-175.0,0.00031222,30]
[424733114,1781095847000,-3000.0,0.00031222,30]
[424733111,1781095847000,-309.0,0.00031222,30]
[424733109,1781095847000,-534.0,0.00031222,30]
[424733098,1781095847000,-531.0,0.000312,7]
[424733089,1781095847000,-1000.0,0.000312,7]
[424733061,1781095847000,-1254.88438989,0.00030772,2]
[424733085,1781095847000,-193.0,0.000309,7]
[424733117,1781095847000,-1714.0,0.00031222,30]
[424733063,1781095847000,-788.97150354,0.00030772,2]
[424733062,1781095847000,-890.21928779,0.00030772,2]
[424733056,1781095847000,-1114.68150581,0.00030772,2]
[424733055,1781095847000,-517.0,0.00030525,13]
[424733064,1781095847000,-971.71743469,0.00030772,2]
[424733058,1781095847000,-769.27761751,0.00030772,2]
[424733065,1781095847000,-827.5573821,0.00030801,2]
[424733059,1781095847000,-787.52498708,0.00030772,2]
[424733066,1781095847000,-867.48888802,0.00030801,2]
[424733074,1781095847000,-382.0,0.00030851,2]
[424733077,1781095847000,-300.0,0.000309,7]
[424733068,1781095847000,-839.51997502,0.00030801,2]
[424733075,1781095847000,-1227.0,0.00030851,2]
[424733076,1781095847000,-164.08,0.000309,7]
[424733073,1781095847000,-1274.0,0.00030851,2]
[424733067,1781095847000,-1161.59960763,0.00030801,2]
[424733071,1781095847000,-801.91972742,0.00030801,2]
[424733069,1781095847000,-849.65264185,0.00030801,2]
[424733072,1781095847000,-150.0,0.00030841,2]
[424733082,1781095847000,-300.0,0.000309,7]
[424733080,1781095847000,-300.0,0.000309,7]
[424733083,1781095847000,-300.0,0.000309,7]
[424733081,1781095847000,-300.0,0.000309,7]
[424733091,1781095847000,-400.0,0.000312,7]
[424733079,1781095847000,-300.0,0.000309,7]
[424733090,1781095847000,-400.0,0.000312,7]
[424733086,1781095847000,-524.97,0.00031096,5]
[424733127,1781095847000,-1166.06092162,0.00031636,2]
[424733078,1781095847000,-300.0,0.000309,7]
[424733116,1781095847000,-3000.0,0.00031222,30]
[424733149,1781095847000,-3763.00342347,0.00031959,2]
[424733151,1781095847000,-3000.0,0.00031963,30]
[424733163,1781095847000,-177.82131138,0.00032,120]
[424733162,1781095847000,-255.25011817,0.00032,120]
[424733153,1781095847000,-3000.0,0.00031963,30]
[424733154,1781095847000,-1881.0,0.00031963,30]
[424733155,1781095847000,-1100.0,0.00031963,30]
[424733157,1781095847000,-150.0,0.00031968,7]
[424733156,1781095847000,-979.0,0.00031963,30]
[424733161,1781095847000,-208.32778592,0.00032,120]
[424733159,1781095847000,-489.2465004,0.00032,120]
[424733160,1781095847000,-194.94433173,0.00032,120]
[424733177,1781095847000,-364.56391287,0.00032,120]
[424733158,1781095847000,-178.07945567,0.00032,120]
[424733165,1781095847000,-211.50314132,0.00032,120]
[424733175,1781095847000,-172.53413826,0.00032,120]
[424733164,1781095847000,-1502.91269451,0.00032,120]
[424733169,1781095847000,-1831.86948476,0.00032,120]
[424733166,1781095847000,-407.50870982,0.00032,120]
[424733167,1781095847000,-332.63256615,0.00032,120]
[424733168,1781095847000,-199.66604064,0.00032,120]
[424733171,1781095847000,-210.67196124,0.00032,120]
[424733170,1781095847000,-1649.13533443,0.00032,120]
[424733173,1781095847000,-180.25466661,0.00032,120]
[424733174,1781095847000,-1216.67543188,0.00032,120]
[424733176,1781095847000,-427.60588631,0.00032,120]
[424733128,1781095847000,-438.80061462,0.0003164,2]
[424733147,1781095847000,-150.0,0.00031858,7]
[424733146,1781095847000,-150.0,0.00031858,7]
[424733172,1781095847000,-320.10232122,0.00032,120]
[424733141,1781095847000,-150.0,0.00031858,7]
[424733150,1781095847000,-174.31,0.00031963,30]
[424733120,1781095847000,-153.80113636,0.00031504,2]
[424733118,1781095847000,-1212.0,0.00031222,30]
[424733119,1781095847000,-155.35,0.0003134,2]
[424733123,1781095847000,-945.0299845,0.00031636,2]
[424733121,1781095847000,-1337.61780697,0.00031636,2]
[424733124,1781095847000,-1505.86126786,0.00031636,2]
[424733126,1781095847000,-946.76580425,0.00031636,2]
[424733122,1781095847000,-923.13314102,0.00031636,2]
[424733129,1781095847000,-150.316443,0.00031644,2]
[424733131,1781095847000,-1005.89008262,0.00031666,2]
[424733132,1781095847000,-1393.91952915,0.00031666,2]
[424733130,1781095847000,-1040.98666563,0.00031666,2]
[424733125,1781095847000,-1068.26314535,0.00031636,2]
[424733140,1781095847000,-257.15629635,0.00031858,7]
[424733133,1781095847000,-1007.42397002,0.00031666,2]
[424733144,1781095847000,-150.0,0.00031858,7]
[424733145,1781095847000,-150.0,0.00031858,7]
[424733148,1781095847000,-150.0,0.00031858,7]
[424733152,1781095847000,-3000.0,0.00031963,30]
[424733142,1781095847000,-150.0,0.00031858,7]
[424733143,1781095847000,-150.0,0.00031858,7]
[424733134,1781095847000,-1019.58317021,0.00031666,2]
[424733138,1781095847000,-517.0,0.00031778,14]
[424733139,1781095847000,-150.56153269,0.00031858,7]
[424733135,1781095847000,-962.3036729,0.00031666,2]
[424733136,1781095847000,-250.0,0.00031705,120]
[424733137,1781095847000,-396.0,0.00031705,120]
[424733204,1781095848000,-500.0,0.00032231,120]
[424733210,1781095848000,-4590.0,0.00032232,60]
[424733205,1781095848000,-500.0,0.00032231,7]
[424733206,1781095848000,-50000.0,0.00032232,120]
[424733208,1781095848000,-50000.0,0.00032232,60]
[424733207,1781095848000,-50000.0,0.00032232,90]
[424733209,1781095848000,-50000.0,0.00032232,30]
[424733212,1781095848000,-1409.0,0.00032232,60]
[424733203,1781095848000,-153.0,0.00032222,30]
[424733211,1781095848000,-1550.0,0.00032232,60]
[424733219,1781095848000,-517.0,0.00032404,15]
[424733214,1781095848000,-150.0,0.00032251,7]
[424733215,1781095848000,-500.1,0.00032285,2]
[424733216,1781095848000,-164.08,0.000323,7]
[424733217,1781095848000,-150.0,0.000323,7]
[424733223,1781095848000,-150.0,0.00032447,7]
[424733220,1781095848000,-150.0,0.00032411,7]
[424733218,1781095848000,-150.0,0.00032383,2]
[424733202,1781095848000,-309.0,0.00032222,30]
[424733226,1781095848000,-150.0,0.00032644,7]
[424733213,1781095848000,-2360.96,0.00032235,30]
[424733201,1781095848000,-175.0,0.00032222,30]
[424733188,1781095848000,-150.0,0.00032189,7]
[424733196,1781095848000,-153.0,0.00032222,30]
[424733221,1781095848000,-150.0,0.00032447,7]
[424733178,1781095848000,-282.3131898,0.00032,120]
[424733180,1781095848000,-169.64074854,0.00032,120]
[424733179,1781095848000,-182.32151296,0.00032,120]
[424733181,1781095848000,-700.0,0.00032,2]
[424733182,1781095848000,-825.60208543,0.00032,120]
[424733183,1781095848000,-284.95203121,0.00032,30]
[424733184,1781095848000,-2000.0,0.00032,2]
[424733185,1781095848000,-531.65,0.00032055,5]
[424733187,1781095848000,-2000.0,0.000321,2]
[424733186,1781095848000,-150.0,0.00032079,7]
[424733189,1781095848000,-151.0,0.0003221,5]
[424733191,1781095848000,-159.0,0.00032222,30]
[424733198,1781095848000,-173.0,0.00032222,30]
[424733200,1781095848000,-534.0,0.00032222,30]
[424733192,1781095848000,-158.0,0.00032222,30]
[424733197,1781095848000,-489.0,0.00032222,30]
[424733190,1781095848000,-156.0,0.00032222,30]
[424733199,1781095848000,-157.0,0.00032222,30]
[424733195,1781095848000,-153.0,0.00032222,30]
[424733193,1781095848000,-441.0,0.00032222,30]
[424733194,1781095848000,-486.0,0.00032222,30]
[424733227,1781095848000,-251.82,0.00032653,2]
[424733230,1781095848000,-153.80113636,0.00032873,2]
[424733225,1781095848000,-150.0,0.00032632,7]
[424733254,1781095848000,-500.0,0.00032932,7]
[424733255,1781095848000,-500.0,0.00032932,7]
[424733256,1781095848000,-500.0,0.00032932,7]
[424733257,1781095848000,-500.0,0.00032932,7]
[424733258,1781095848000,-500.0,0.00032932,7]
[424733259,1781095848000,-500.0,0.00032932,7]
[424733260,1781095848000,-500.0,0.00032932,7]
[424733253,1781095848000,-500.0,0.00032932,7]
[424733262,1781095848000,-500.0,0.00032932,7]
[424733252,1781095848000,-500.0,0.00032932,7]
[424733264,1781095848000,-500.0,0.00032932,7]
[424733269,1781095848000,-500.0,0.00032932,7]
[424733267,1781095848000,-500.0,0.00032932,7]